[Event "IIFL Wealth 4th Mumbai Open"]
[Site "Mumbai"]
[Date "2019.01.04"]
[Round "6"]
[White "Mokashi, Rohit"]
[Black "Rajbeer Ahmed"]
[Result "1-0"]
[ECO "D47"]
[WhiteElo "1641"]
[BlackElo "1550"]
[Annotator "NA"]
[PlyCount "149"]
[EventDate "2018.12.30"]
[EventType "swiss"]
[EventCountry "IND"]
[SourceTitle "playchess.com"]
[Source "ChessBase"]
[SourceQuality "1"]
[TimeControl "40/5400+30:1800+30"]

1. d4 {[%emt 0:00:00]} d5 {[%emt 0:00:00]} 2. Nf3 {[%emt 0:00:00]} Nf6 {[%emt 0:00:14]} 3. c4 {[%emt 0:00:00]} c6 {[%emt 0:00:13]} 4. Nc3 {[%emt 0:00:01]} e6 {[%emt 0:00:34]} 5. e3 {[%emt 0:00:10]} Nbd7 {[%emt 0:01:13]} 6. Bd3 {[%emt 0:00:09]} dxc4 {[%emt 0:04:43]} 7. Bxc4 {[%emt 0:00:14]} b5 {[%emt 0:01:06]} 8. Bd3 {[%emt 0:04:17]} Bb7 {[%emt 0:02:35]} 9. e4 {[%emt 0:01:40]} b4 {[%emt 0:03:56]} 10. Na4 {[%emt 0:04:01]} Be7 {[%emt 0:06:27]} 11. O-O {[%emt 0:00:40]} O-O {[%emt 0:03:05]} 12. e5 {[%emt 0:01:09]} Nd5 {[%emt 0:00:16]} 13. Bd2 {[%emt 0:01:32]} h6 {[%emt 0:02:02]} 14. Qe2 {[%emt 0:06:23]} a5 {[%emt 0:06:58]} 15. Qe4 {[%emt 0:01:22]} g6 {[%emt 0:03:04]} 16. Bxh6 {[%emt 0:00:40]} Re8 {[%emt 0:00:05]} 17. Qg4 {[%emt 0:01:46]} Nf8 {[%emt 0:02:43]} 18. Ng5 {[%emt 0:05:58]} Ba6 {[%emt 0:03:47]} 19. Rfd1 {[%emt 0:08:27]} Bb5 {[%emt 0:09:46]} 20. Nc5 {[%emt 0:03:40]} Bxc5 {[%emt 0:04:37]} 21. dxc5 {[%emt 0:04:39]} Qc7 {[%emt 0:01:26]} 22. Bxf8 {[%emt 0:18:01]} Kxf8 {[%emt 0:00:26]} 23. f4 {[%emt 0:12:26]} Qa7 {[%emt 0:02:41]} 24. Rac1 {[%emt 0:00:36]} Rad8 {[%emt 0:12:17]} 25. Qh4 {[%emt 0:11:08]} Rd7 {[%emt 0:06:30]} 26. Bxg6 {[%emt 0:05:14]} fxg6 {[%emt 0:01:05]} 27. Rxd5 {[%emt 0:00:17]} Kg8 {[%emt 0:02:28]} 28. Rd6 {[%emt 0:02:11]} Rde7 {[%emt 0:01:00]} 29. Qh6 {[%emt 0:00:27]} Rg7 {[%emt 0:04:23]} 30. Ne4 {[%emt 0:00:43]} Rb8 {[%emt 0:11:34]} 31. Nf6+ {[%emt 0:00:41]} Kf8 {[%emt 0:00:14]} 32. Rxe6 {[%emt 0:04:04]} a4 {[%emt 0:00:43]} 33. Re8+ {[%emt 0:00:40]} Kf7 {[%emt 0:00:49]} 34. Rxb8 {[%emt 0:00:27]} Qxb8 {[%emt 0:00:12]} 35. Qh3 {[%emt 0:00:22]} Qd8 {[%emt 0:00:13]} 36. Qd7+ {[%emt 0:00:48]} Qxd7 {[%emt 0:00:12]} 37. Nxd7 {[%emt 0:00:04]} Ke6 {[%emt 0:00:17]} 38. Nf6 {[%emt 0:00:15]} g5 {[%emt 0:00:10]} 39. fxg5 {[%emt 0:02:53]} Rxg5 {[%emt 0:00:10]} 40. Re1 {[%emt 0:00:00]} Rxe5 {[%emt 0:00:00]} 41. Rxe5+ {[%emt 0:00:55]} Kxe5 {[%emt 0:00:20]} 42. Nd7+ {[%emt 0:01:01]} Kf4 {[%emt 0:01:07]} 43. Kf2 {[%emt 0:00:09]} a3 {[%emt 0:00:08]} 44. b3 {[%emt 0:07:22]} Bc4 {[%emt 0:01:06]} 45. Nb8 {[%emt 0:03:34]} Bb5 {[%emt 0:07:34]} 46. Ke1 {[%emt 0:03:12]} Ke4 {[%emt 0:01:09]} 47. Kd2 {[%emt 0:00:30]} Kd5 {[%emt 0:00:28]} 48. Nd7 {[%emt 0:00:27]} Bf1 {[%emt 0:01:41]} 49. h4 {[%emt 0:06:42]} Ke6 {[%emt 0:06:36]} 50. h5 {[%emt 0:00:23]} Bxg2 {[%emt 0:01:43]} 51. h6 {[%emt 0:00:18]} Kf7 {[%emt 0:00:28]} 52. Ne5+ {[%emt 0:00:24]} Kf6 {[%emt 0:02:18]} 53. Nd3 {[%emt 0:00:38]} Be4 {[%emt 0:03:22]} 54. Nxb4 {[%emt 0:01:12]} Kg6 {[%emt 0:00:21]} 55. Nc2 {[%emt 0:01:14]} Kxh6 {[%emt 0:00:21]} 56. Nxa3 {[%emt 0:00:07]} Kg6 {[%emt 0:00:13]} 57. Ke3 {[%emt 0:01:13]} Kf5 {[%emt 0:00:53]} 58. Kd4 {[%emt 0:00:17]} Bg2 {[%emt 0:01:17]} 59. Nc4 {[%emt 0:01:56]} Ke6 {[%emt 0:00:49]} 60. b4 {[%emt 0:00:29]} Kd7 {[%emt 0:01:06]} 61. a4 {[%emt 0:00:07]} Kc7 {[%emt 0:01:33]} 62. b5 {[%emt 0:00:25]} cxb5 {[%emt 0:01:54]} 63. axb5 {[%emt 0:00:12]} Kb7 {[%emt 0:00:54]} 64. Na5+ {[%emt 0:00:50]} Kc7 {[%emt 0:00:17]} 65. b6+ {[%emt 0:02:42]} Kb8 {[%emt 0:00:52]} 66. Ke5 {[%emt 0:00:14]} Kc8 {[%emt 0:00:36]} 67. Kd6 {[%emt 0:00:06]} Kb8 {[%emt 0:00:20]} 68. c6 {[%emt 0:00:33]} Bxc6 {[%emt 0:00:44]} 69. Kxc6 {[%emt 0:00:09]} Kc8 {[%emt 0:00:07]} 70. b7+ {[%emt 0:00:15]} Kb8 {[%emt 0:00:03]} 71. Nc4 {[%emt 0:00:13]} Ka7 {[%emt 0:00:05]} 72. Kc7 {[%emt 0:00:12]} Ka6 {[%emt 0:00:03]} 73. Ne3 {[%emt 0:00:15]} Kb5 {[%emt 0:00:17]} 74. b8=Q+ {[%emt 0:00:16]} Kc5 {[%emt 0:00:06]} 75. Qb6# {[%emt 0:00:11]} 1-0

[Event "IIFL Wealth 4th Mumbai Open"]
[Site "Mumbai"]
[Date "2019.01.04"]
[Round "6"]
[White "Sarvade Mihiir"]
[Black "Kapadi, Yash"]
[Result "0-1"]
[ECO "A57"]
[WhiteElo "1570"]
[BlackElo "1749"]
[Annotator "NA"]
[PlyCount "70"]
[EventDate "2018.12.30"]
[EventType "swiss"]
[EventCountry "IND"]
[SourceTitle "playchess.com"]
[Source "ChessBase"]
[SourceQuality "1"]
[TimeControl "40/5400+30:1800+30"]

1. d4 {[%emt 0:00:48]} c5 {[%emt 0:08:16]} 2. d5 {[%emt 0:00:51]} Nf6 {[%emt 0:00:05]} 3. c4 {[%emt 0:00:04]} b5 {[%emt 0:00:03]} 4. cxb5 {[%emt 0:01:26]} a6 {[%emt 0:00:06]} 5. b6 {[%emt 0:01:22]} Qxb6 {[%emt 0:00:08]} 6. Nc3 {[%emt 0:01:45]} g6 {[%emt 0:01:20]} 7. a4 {[%emt 0:03:16]} d6 {[%emt 0:00:24]} 8. a5 {[%emt 0:00:07]} Qc7 {[%emt 0:00:20]} 9. e4 {[%emt 0:00:12]} Bg7 {[%emt 0:00:05]} 10. Bc4 {[%emt 0:03:39]} O-O {[%emt 0:01:48]} 11. f4 {[%emt 0:00:31]} Re8 {[%emt 0:05:03]} 12. Nf3 {[%emt 0:03:15]} e6 {[%emt 0:02:11]} 13. O-O {[%emt 0:32:22]} exd5 {[%emt 0:00:27]} 14. Bxd5 {[%emt 0:16:11]} Nxd5 {[%emt 0:11:16]} 15. Nxd5 {[%emt 0:01:38]} Qc6 {[%emt 0:07:52]} 16. Nb6 {[%emt 0:12:36]} Ra7 {[%emt 0:02:31]} 17. Nxc8 {[%emt 0:01:27]} Rxc8 {[%emt 0:00:20]} 18. Qc2 {[%emt 0:05:29]} Rb7 {[%emt 0:01:06]} 19. e5 {[%emt 0:06:12]} Re8 {[%emt 0:05:39]} 20. Qc3 {[%emt 0:05:08]} Nd7 {[%emt 0:10:51]} 21. Re1 {[%emt 0:00:58]} Qd5 {[%emt 0:04:33]} 22. Qd2 {[%emt 0:00:43]} Qxd2 {[%emt 0:00:07]} 23. Bxd2 {[%emt 0:00:17]} dxe5 {[%emt 0:00:07]} 24. Bc3 {[%emt 0:01:10]} e4 {[%emt 0:00:21]} 25. Bxg7 {[%emt 0:00:25]} Kxg7 {[%emt 0:00:01]} 26. Nd2 {[%emt 0:00:24]} f5 {[%emt 0:01:51]} 27. Nc4 {[%emt 0:00:10]} Rb4 {[%emt 0:00:32]} 28. Rac1 {[%emt 0:00:35]} Re7 {[%emt 0:03:26]} 29. Red1 {[%emt 0:00:24]} Nf6 {[%emt 0:00:43]} 30. Ne5 {[%emt 0:00:59]} Rxb2 {[%emt 0:00:38]} 31. Rxc5 {[%emt 0:00:01]} e3 {[%emt 0:04:56]} 32. Re1 {[%emt 0:00:51]} e2 {[%emt 0:02:06]} 33. Rc6 {[%emt 0:00:42]} Nd5 {[%emt 0:02:56]} 34. Rxa6 {[%emt 0:00:31]} Nxf4 {[%emt 0:00:38]} 35. g3 Rb6 0-1

[Event "IIFL Wealth 4th Mumbai Open"]
[Site "Mumbai"]
[Date "2019.01.04"]
[Round "6"]
[White "Bheri Yaswanth"]
[Black "Thatte, Ashish P"]
[Result "0-1"]
[ECO "A57"]
[WhiteElo "1550"]
[BlackElo "1957"]
[Annotator "NA"]
[PlyCount "105"]
[EventDate "2018.12.30"]
[EventType "swiss"]
[EventCountry "IND"]
[SourceTitle "playchess.com"]
[Source "ChessBase"]
[SourceQuality "1"]
[TimeControl "40/5400+30:1800+30"]

1. d4 {[%emt 0:00:00]} Nf6 {[%emt 0:01:28]} 2. c4 {[%emt 0:00:00]} c5 {[%emt 0:00:07]} 3. d5 {[%emt 0:00:02]} b5 {[%emt 0:00:07]} 4. cxb5 {[%emt 0:00:13]} a6 {[%emt 0:00:05]} 5. e3 {[%emt 0:00:39]} g6 {[%emt 0:00:23]} 6. Nc3 {[%emt 0:01:09]} Bg7 {[%emt 0:01:02]} 7. Nf3 {[%emt 0:04:15]} O-O {[%emt 0:01:37]} 8. b6 {[%emt 0:02:02]} a5 {[%emt 0:04:53]} 9. Qb3 {[%emt 0:10:27]} Bb7 {[%emt 0:03:29]} 10. Be2 {[%emt 0:07:31]} d6 {[%emt 0:00:53]} 11. O-O {[%emt 0:07:37]} Nbd7 {[%emt 0:00:24]} 12. e4 {[%emt 0:02:14]} Qxb6 {[%emt 0:18:53]} 13. Nd2 {[%emt 0:06:27]} Qxb3 {[%emt 0:02:27]} 14. axb3 {[%emt 0:00:26]} Ba6 {[%emt 0:00:20]} 15. Bxa6 {[%emt 0:03:39]} Rxa6 {[%emt 0:00:02]} 16. Nc4 Rfa8 {[%emt 0:08:29]} 17. f4 {[%emt 0:04:59]} Ng4 {[%emt 0:09:20]} 18. Nd1 {[%emt 0:08:12]} a4 {[%emt 0:03:51]} 19. bxa4 {[%emt 0:06:26]} Rxa4 {[%emt 0:00:09]} 20. Rxa4 {[%emt 0:00:05]} Rxa4 {[%emt 0:00:10]} 21. b3 {[%emt 0:00:21]} Bd4+ {[%emt 0:04:34]} 22. Kh1 {[%emt 0:08:40]} Ra1 {[%emt 0:19:05]} 23. Be3 {[%emt 0:01:13]} Rxd1 {[%emt 0:08:07]} 24. Rxd1 {[%emt 0:00:05]} Nxe3 {[%emt 0:00:03]} 25. Nxe3 {[%emt 0:00:53]} Bxe3 {[%emt 0:00:02]} 26. g3 {[%emt 0:00:10]} Kf8 {[%emt 0:00:54]} 27. Kg2 {[%emt 0:00:09]} f5 {[%emt 0:00:11]} 28. Kf3 {[%emt 0:03:00]} Bd4 {[%emt 0:00:09]} 29. exf5 {[%emt 0:02:27]} gxf5 {[%emt 0:00:50]} 30. h3 {[%emt 0:01:10]} h5 {[%emt 0:02:04]} 31. Re1 {[%emt 0:00:48]} Nb6 {[%emt 0:00:45]} 32. g4 {[%emt 0:01:01]} hxg4+ {[%emt 0:00:24]} 33. hxg4 {[%emt 0:00:05]} fxg4+ {[%emt 0:00:12]} 34. Kxg4 {[%emt 0:00:06]} Nxd5 {[%emt 0:00:18]} 35. Re2 {[%emt 0:00:54]} Kf7 {[%emt 0:02:02]} 36. Rh2 {[%emt 0:00:16]} Bg7 {[%emt 0:03:37]} 37. Rd2 {[%emt 0:01:11]} Ne3+ {[%emt 0:00:17]} 38. Kf3 {[%emt 0:00:17]} Nf5 {[%emt 0:00:02]} 39. Rd3 {[%emt 0:00:35]} e6 {[%emt 0:02:16]} 40. Kg4 {[%emt 0:00:00]} d5 {[%emt 0:00:00]} 41. Kf3 {[%emt 0:01:36]} Ke7 {[%emt 0:05:28]} 42. Kg4 {[%emt 0:00:31]} c4 {[%emt 0:00:43]} 43. bxc4 {[%emt 0:00:08]} dxc4 {[%emt 0:00:17]} 44. Ra3 {[%emt 0:00:19]} c3 {[%emt 0:00:38]} 45. Ra7+ {[%emt 0:00:08]} Kd6 {[%emt 0:01:10]} 46. Ra6+ {[%emt 0:01:00]} Kd5 {[%emt 0:00:11]} 47. Ra5+ {[%emt 0:00:44]} Kc4 {[%emt 0:01:21]} 48. Ra6 {[%emt 0:00:25]} Bd4 {[%emt 0:04:23]} 49. Rxe6 {[%emt 0:00:46]} Ne3+ {[%emt 0:00:40]} 50. Kf3 {[%emt 0:00:59]} c2 {[%emt 0:00:13]} 51. Rc6+ {[%emt 0:00:34]} Bc5 {[%emt 0:00:07]} 52. Rxc5+ {[%emt 0:00:06]} Kxc5 {[%emt 0:00:12]} 53. Kxe3 {[%emt 0:00:03]} 0-1

[Event "IIFL Wealth 4th Mumbai Open"]
[Site "Mumbai"]
[Date "2019.01.04"]
[Round "6"]
[White "Rushyendra Chowdary Kantipudi"]
[Black "Arhan, Chethan Anand"]
[Result "1/2-1/2"]
[ECO "C68"]
[WhiteElo "1527"]
[BlackElo "1710"]
[Annotator "NA"]
[PlyCount "86"]
[EventDate "2018.12.30"]
[EventType "swiss"]
[EventCountry "IND"]
[SourceTitle "playchess.com"]
[Source "ChessBase"]
[SourceQuality "1"]
[TimeControl "40/5400+30:1800+30"]

1. e4 {[%emt 0:00:00]} e5 {[%emt 0:00:00]} 2. Nf3 {[%emt 0:00:05]} Nc6 {[%emt 0:00:01]} 3. Bb5 {[%emt 0:00:25]} a6 {[%emt 0:00:16]} 4. Bxc6 {[%emt 0:00:08]} dxc6 {[%emt 0:00:06]} 5. O-O {[%emt 0:00:35]} Bg4 {[%emt 0:00:05]} 6. h3 {[%emt 0:00:34]} h5 {[%emt 0:00:08]} 7. d3 {[%emt 0:00:46]} Qf6 {[%emt 0:02:36]} 8. Nbd2 {[%emt 0:02:19]} Ne7 {[%emt 0:04:06]} 9. Re1 {[%emt 0:02:01]} Ng6 {[%emt 0:01:24]} 10. hxg4 {[%emt 0:06:50]} hxg4 {[%emt 0:00:08]} 11. g3 {[%emt 0:00:07]} gxf3 {[%emt 0:08:34]} 12. Qxf3 {[%emt 0:00:09]} Qxf3 {[%emt 0:06:13]} 13. Nxf3 {[%emt 0:00:07]} O-O-O {[%emt 0:00:34]} 14. Be3 {[%emt 0:01:43]} c5 {[%emt 0:02:45]} 15. a4 {[%emt 0:08:41]} Be7 {[%emt 0:01:34]} 16. Kg2 {[%emt 0:04:21]} f6 {[%emt 0:12:30]} 17. Rh1 {[%emt 0:04:23]} Kd7 {[%emt 0:07:15]} 18. b3 {[%emt 0:08:15]} Ke6 {[%emt 0:09:45]} 19. g4 {[%emt 0:05:55]} Rh7 20. Rh4 Rxh4 {[%emt 0:10:54]} 21. Rc1 Rh1 22. Rxh1 {[%emt 0:02:50]} Kf7 {[%emt 0:03:34]} 23. Kg3 {[%emt 0:06:40]} Rg8 {[%emt 0:06:10]} 24. Rh5 {[%emt 0:05:03]} Rh8 {[%emt 0:04:05]} 25. Rxh8 {[%emt 0:00:26]} Nxh8 {[%emt 0:00:02]} 26. g5 {[%emt 0:00:09]} Ke6 {[%emt 0:02:27]} 27. Kg4 {[%emt 0:00:58]} Nf7 {[%emt 0:01:08]} 28. gxf6 {[%emt 0:04:14]} gxf6 {[%emt 0:00:29]} 29. Nh4 {[%emt 0:00:08]} b6 {[%emt 0:01:40]} 30. Nf5 {[%emt 0:00:17]} Nd6 31. Nxd6 {[%emt 0:02:35]} cxd6 {[%emt 0:01:45]} 32. c4 {[%emt 0:02:31]} a5 {[%emt 0:00:41]} 33. Bh6 {[%emt 0:00:26]} Bd8 {[%emt 0:00:34]} 34. f3 {[%emt 0:00:53]} Be7 {[%emt 0:00:10]} 35. Bd2 {[%emt 0:05:39]} Bd8 {[%emt 0:00:12]} 36. Be3 {[%emt 0:00:10]} Be7 {[%emt 0:00:09]} 37. Bh6 {[%emt 0:00:05]} Bd8 {[%emt 0:00:04]} 38. Bf8 {[%emt 0:00:32]} Bc7 {[%emt 0:00:26]} 39. Bg7 {[%emt 0:02:31]} Kf7 {[%emt 0:00:14]} 40. Kf5 {[%emt 0:04:18]} Bd8 {[%emt 0:10:03]} 41. Bh6 {[%emt 0:30:12]} Be7 {[%emt 0:30:07]} 42. f4 {[%emt 0:00:00]} Bd8 {[%emt 0:00:00]} 43. fxe5 {[%emt 0:00:00]} dxe5 {[%emt 0:00:00]} 1/2-1/2

[Event "IIFL Wealth 4th Mumbai Open"]
[Site "Mumbai"]
[Date "2019.01.04"]
[Round "6"]
[White "Sheikh Jahan"]
[Black "Deepak, Rai"]
[Result "1/2-1/2"]
[ECO "B07"]
[WhiteElo "1526"]
[BlackElo "1710"]
[Annotator "NA"]
[PlyCount "196"]
[EventDate "2018.12.30"]
[EventType "swiss"]
[EventCountry "IND"]
[SourceTitle "playchess.com"]
[Source "ChessBase"]
[SourceQuality "1"]
[TimeControl "40/5400+30:1800+30"]

1. e4 {[%emt 0:05:40]} d6 {[%emt 0:00:00]} 2. d4 {[%emt 0:00:58]} Nf6 {[%emt 0:00:05]} 3. Nc3 {[%emt 0:00:08]} Nbd7 {[%emt 0:00:23]} 4. f4 {[%emt 0:00:10]} e5 {[%emt 0:01:30]} 5. dxe5 {[%emt 0:00:38]} dxe5 {[%emt 0:00:08]} 6. fxe5 {[%emt 0:01:35]} Nxe5 {[%emt 0:00:10]} 7. Qxd8+ {[%emt 0:00:10]} Kxd8 {[%emt 0:00:05]} 8. Bg5 {[%emt 0:00:09]} c6 {[%emt 0:01:42]} 9. Nf3 {[%emt 0:02:45]} Bd6 {[%emt 0:00:56]} 10. O-O-O {[%emt 0:00:47]} Kc7 {[%emt 0:02:26]} 11. Bf4 {[%emt 0:02:37]} Nd3+ {[%emt 0:02:56]} 12. Bxd3 {[%emt 0:00:48]} Bxf4+ {[%emt 0:00:06]} 13. Kb1 {[%emt 0:00:08]} Ng4 {[%emt 0:03:43]} 14. Rdf1 {[%emt 0:03:58]} f6 {[%emt 0:04:17]} 15. Ne2 {[%emt 0:08:45]} Bd6 {[%emt 0:01:39]} 16. h3 {[%emt 0:02:14]} Ne5 {[%emt 0:02:07]} 17. Nxe5 {[%emt 0:00:19]} Bxe5 {[%emt 0:00:08]} 18. Ng1 {[%emt 0:01:18]} Bd7 {[%emt 0:04:57]} 19. Nf3 {[%emt 0:00:52]} Rae8 {[%emt 0:01:49]} 20. Nxe5 {[%emt 0:03:29]} Rxe5 {[%emt 0:00:09]} 21. Kc1 {[%emt 0:00:18]} Rhe8 {[%emt 0:00:15]} 22. Rf4 {[%emt 0:06:07]} c5 {[%emt 0:00:38]} 23. g4 {[%emt 0:00:21]} Bc6 {[%emt 0:01:31]} 24. Re1 {[%emt 0:00:44]} b5 {[%emt 0:05:32]} 25. b3 {[%emt 0:00:43]} h5 {[%emt 0:00:16]} 26. Rf5 {[%emt 0:01:29]} hxg4 {[%emt 0:00:24]} 27. hxg4 {[%emt 0:00:21]} Bd7 {[%emt 0:00:46]} 28. Rxe5 {[%emt 0:05:25]} Rxe5 {[%emt 0:01:11]} 29. Rg1 {[%emt 0:02:48]} b4 {[%emt 0:01:41]} 30. Kd2 {[%emt 0:00:45]} Rg5 {[%emt 0:00:18]} 31. Be2 {[%emt 0:00:46]} Bc6 {[%emt 0:00:23]} 32. Ke3 {[%emt 0:01:54]} Re5 {[%emt 0:02:09]} 33. Bd3 {[%emt 0:00:28]} Bd7 {[%emt 0:02:48]} 34. Kf4 {[%emt 0:01:07]} g5+ {[%emt 0:02:32]} 35. Kf3 {[%emt 0:02:19]} Re7 {[%emt 0:03:59]} 36. Rh1 {[%emt 0:02:14]} Kd6 {[%emt 0:00:13]} 37. a3 {[%emt 0:06:14]} a5 {[%emt 0:06:49]} 38. axb4 {[%emt 0:01:08]} axb4 {[%emt 0:00:13]} 39. Ra1 {[%emt 0:00:03]} Ke5 {[%emt 0:00:18]} 40. Ra6 {[%emt 0:00:00]} Rh7 {[%emt 0:00:00]} 41. Ra5 {[%emt 0:03:02]} Kd4 {[%emt 0:06:08]} 42. Ra6 {[%emt 0:00:04]} Ke5 {[%emt 0:05:50]} 43. Ra5 {[%emt 0:00:41]} Kd4 {[%emt 0:00:09]} 44. Ra6 {[%emt 0:00:38]} Rh3+ {[%emt 0:04:15]} 45. Kg2 {[%emt 0:00:28]} Bxg4 {[%emt 0:00:29]} 46. Rxf6 {[%emt 0:00:15]} Ke5 {[%emt 0:33:09]} 47. Rc6 {[%emt 0:05:31]} Kf4 {[%emt 0:00:24]} 48. Rxc5 {[%emt 0:01:24]} Rg3+ {[%emt 0:00:29]} 49. Kf2 {[%emt 0:00:10]} Rf3+ {[%emt 0:00:47]} 50. Ke1 {[%emt 0:01:02]} Rh3 {[%emt 0:04:41]} 51. Kd2 {[%emt 0:06:26]} Rh1 {[%emt 0:01:22]} 52. c4 {[%emt 0:00:56]} Rh2+ {[%emt 0:04:10]} 53. Kc1 {[%emt 0:01:17]} Bh3 {[%emt 0:01:44]} 54. Bc2 {[%emt 0:01:23]} g4 {[%emt 0:04:48]} 55. Rf5+ {[%emt 0:00:49]} Ke3 {[%emt 0:00:20]} 56. Rg5 {[%emt 0:03:53]} Kf4 {[%emt 0:03:44]} 57. Rf5+ {[%emt 0:00:34]} Ke3 {[%emt 0:00:10]} 58. Rg5 {[%emt 0:00:04]} Kf4 {[%emt 0:00:04]} 59. Rf5+ {[%emt 0:02:17]} Ke3 {[%emt 0:00:06]} 60. Rg5 {[%emt 0:01:46]} Kf2 {[%emt 0:00:10]} 61. Rf5+ {[%emt 0:00:21]} Ke3 {[%emt 0:03:02]} 62. Rg5 {[%emt 0:00:01]} Kf2 {[%emt 0:01:11]} 63. Rf5+ {[%emt 0:00:04]} Ke3 {[%emt 0:00:04]} 64. Rg5 {[%emt 0:00:15]} Kf4 {[%emt 0:06:15]} 65. Rf5+ {[%emt 0:00:07]} Ke3 {[%emt 0:00:05]} 66. Rg5 {[%emt 0:00:25]} Kf4 {[%emt 0:00:30]} 67. Rf5+ {[%emt 0:00:05]} Ke3 {[%emt 0:00:05]} 68. Rg5 {[%emt 0:00:04]} Kf2 {[%emt 0:00:07]} 69. Rf5+ {[%emt 0:00:10]} Ke3 {[%emt 0:00:04]} 70. Rg5 {[%emt 0:00:08]} Kf2 {[%emt 0:00:03]} 71. Rf5+ {[%emt 0:00:11]} Ke3 {[%emt 0:00:03]} 72. Rg5 {[%emt 0:00:12]} Kf4 {[%emt 0:00:05]} 73. Rf5+ {[%emt 0:00:06]} Ke3 {[%emt 0:00:02]} 74. Rg5 {[%emt 0:00:29]} Rh1+ {[%emt 0:00:15]} 75. Kb2 {[%emt 0:01:06]} Kf2 {[%emt 0:03:16]} 76. Rf5+ {[%emt 0:08:29]} Kg1 {[%emt 0:01:49]} 77. Rg5 {[%emt 0:06:10]} Kh2 {[%emt 0:00:12]} 78. e5 {[%emt 0:01:35]} Re1 {[%emt 0:00:54]} 79. Rh5 {[%emt 0:02:34]} Kg2 {[%emt 0:02:51]} 80. c5 {[%emt 0:06:40]} g3 {[%emt 0:01:21]} 81. c6 {[%emt 0:00:01]} Bc8 {[%emt 0:00:42]} 82. Rh8 {[%emt 0:01:32]} Be6 {[%emt 0:01:25]} 83. c7 {[%emt 0:01:55]} Kf2 {[%emt 0:00:46]} 84. Rf8+ {[%emt 0:00:25]} Ke3 {[%emt 0:00:23]} 85. Rf6 {[%emt 0:04:29]} Bc8 {[%emt 0:01:26]} 86. e6 {[%emt 0:01:04]} Kd4 {[%emt 0:01:10]} 87. Rg6 {[%emt 0:02:57]} Rxe6 {[%emt 0:00:37]} 88. Rxg3 {[%emt 0:00:29]} Re7 {[%emt 0:00:16]} 89. Rf3 {[%emt 0:01:03]} Rxc7 {[%emt 0:00:44]} 90. Rf4+ {[%emt 0:00:17]} Kc5 {[%emt 0:00:23]} 91. Rc4+ {[%emt 0:00:08]} Kb6 {[%emt 0:00:07]} 92. Rxb4+ {[%emt 0:00:20]} Kc5 {[%emt 0:00:09]} 93. Rc4+ {[%emt 0:00:36]} Kb6 {[%emt 0:00:05]} 94. Kc3 {[%emt 0:02:06]} Rxc4+ {[%emt 0:00:13]} 95. bxc4 {[%emt 0:00:12]} Kc5 {[%emt 0:00:03]} 96. Be4 {[%emt 0:03:02]} Be6 {[%emt 0:00:36]} 97. Bd5 {[%emt 0:00:56]} Bxd5 {[%emt 0:00:12]} 98. cxd5 {[%emt 0:00:02]} Kxd5 {[%emt 0:01:16]} 1/2-1/2

[Event "IIFL Wealth 4th Mumbai Open"]
[Site "Mumbai"]
[Date "2019.01.04"]
[Round "6"]
[White "Dhanvij Ansh"]
[Black "Tamhankar, Siddhant"]
[Result "1-0"]
[ECO "A80"]
[WhiteElo "1523"]
[BlackElo "1704"]
[Annotator "NA"]
[PlyCount "69"]
[EventDate "2018.12.30"]
[EventType "swiss"]
[EventCountry "IND"]
[SourceTitle "playchess.com"]
[Source "ChessBase"]
[SourceQuality "1"]
[TimeControl "40/5400+30:1800+30"]

1. d4 f5 2. Bg5 h6 3. Bh4 g5 4. Bg3 Nf6 5. h3 d6 6. e3 Bg7 7. Bd3 e6 8. h4 g4 9. Ne2 Nh5 10. Nd2 Nc6 11. c3 Nxg3 12. Nxg3 h5 13. Ne2 e5 14. g3 O-O 15. b4 a5 16. bxa5 Rxa5 17. Nb3 Ra7 18. Qd2 Be6 19. O-O Bh6 20. Bc2 Bc4 21. Bd3 Bd5 22. Bc2 Bf3 23. dxe5 Bxe2 24. Qxe2 Nxe5 25. Nd4 Qd7 26. Bb3+ d5 27. Rfd1 Ra5 28. e4 fxe4 29. Qxe4 Nf3+ 30. Nxf3 gxf3 31. Bxd5+ Kg7 32. Be6 Qb5 33. Rd7+ Kf6 34. Rd5 Qc6 35. Qe5+ {Kxe5} 1-0

[Event "IIFL Wealth 4th Mumbai Open"]
[Site "Mumbai"]
[Date "2019.01.04"]
[Round "6"]
[White "Negi Augustiya"]
[Black "Joglekar, Abhijit"]
[Result "1-0"]
[ECO "D38"]
[WhiteElo "1521"]
[BlackElo "1692"]
[Annotator "NA"]
[PlyCount "113"]
[EventDate "2018.12.30"]
[EventType "swiss"]
[EventCountry "IND"]
[SourceTitle "playchess.com"]
[Source "ChessBase"]
[SourceQuality "1"]
[TimeControl "40/5400+30:1800+30"]

1. d4 {[%emt 0:00:00]} Nf6 {[%emt 0:22:29]} 2. Nf3 {[%emt 0:00:36]} e6 {[%emt 0:04:29]} 3. c4 {[%emt 0:00:09]} d5 {[%emt 0:00:17]} 4. Nc3 {[%emt 0:00:21]} Bb4 {[%emt 0:00:40]} 5. Bg5 {[%emt 0:00:09]} O-O {[%emt 0:01:55]} 6. e3 {[%emt 0:00:09]} c6 {[%emt 0:06:55]} 7. a3 {[%emt 0:00:55]} Be7 {[%emt 0:00:12]} 8. cxd5 {[%emt 0:00:07]} exd5 {[%emt 0:00:17]} 9. Bd3 {[%emt 0:00:08]} Nbd7 {[%emt 0:04:05]} 10. O-O {[%emt 0:02:29]} Re8 {[%emt 0:00:15]} 11. Qc2 {[%emt 0:00:15]} Nf8 {[%emt 0:01:03]} 12. b4 {[%emt 0:00:53]} a6 {[%emt 0:00:30]} 13. Rab1 {[%emt 0:00:11]} Ng6 {[%emt 0:01:38]} 14. a4 {[%emt 0:00:36]} Ne4 {[%emt 0:08:29]} 15. Bxe4 {[%emt 0:08:45]} Bxg5 {[%emt 0:00:51]} 16. Bd3 {[%emt 0:01:22]} Be7 {[%emt 0:03:56]} 17. b5 {[%emt 0:00:50]} axb5 {[%emt 0:00:16]} 18. axb5 {[%emt 0:00:07]} Bd6 {[%emt 0:00:23]} 19. bxc6 {[%emt 0:00:13]} bxc6 {[%emt 0:00:07]} 20. Na4 {[%emt 0:00:42]} Bg4 {[%emt 0:05:08]} 21. Be2 {[%emt 0:02:36]} h5 {[%emt 0:06:12]} 22. h3 {[%emt 0:03:36]} Bd7 {[%emt 0:16:58]} 23. Nc5 {[%emt 0:01:42]} Bb8 {[%emt 0:05:05]} 24. Ba6 {[%emt 0:13:02]} Ra7 {[%emt 0:01:43]} 25. Rb7 {[%emt 0:08:29]} Rxb7 {[%emt 0:00:20]} 26. Bxb7 {[%emt 0:00:21]} Ne7 {[%emt 0:00:36]} 27. Rc1 {[%emt 0:17:11]} Bc8 {[%emt 0:00:24]} 28. Bxc8 {[%emt 0:00:40]} Qxc8 {[%emt 0:00:20]} 29. Nd3 {[%emt 0:00:46]} f6 {[%emt 0:01:09]} 30. Nb4 {[%emt 0:02:08]} Rd8 {[%emt 0:06:19]} 31. Nxc6 {[%emt 0:00:44]} Nxc6 {[%emt 0:00:01]} 32. Qxc6 {[%emt 0:00:09]} Qf5 {[%emt 0:00:07]} 33. Qc2 {[%emt 0:00:27]} Qe6 {[%emt 0:00:22]} 34. Qb3 {[%emt 0:02:01]} Qd6 {[%emt 0:01:11]} 35. Qc3 {[%emt 0:00:36]} Rd7 {[%emt 0:01:04]} 36. Qb3 {[%emt 0:04:51]} Kh7 {[%emt 0:01:00]} 37. Qb1+ {[%emt 0:01:50]} g6 {[%emt 0:00:12]} 38. g3 {[%emt 0:02:43]} Kg7 {[%emt 0:00:57]} 39. Qb5 {[%emt 0:01:47]} Re7 {[%emt 0:00:52]} 40. Rc6 {[%emt 0:00:00]} Qa3 {[%emt 0:00:00]} 41. Qxb8 {[%emt 0:06:44]} Rxe3 {[%emt 0:00:58]} 42. Rc7+ {[%emt 0:00:50]} Re7 {[%emt 0:00:10]} 43. Rxe7+ {[%emt 0:00:11]} Qxe7 {[%emt 0:00:01]} 44. Qb6 {[%emt 0:00:16]} Qe4 {[%emt 0:00:11]} 45. Qc7+ {[%emt 0:00:45]} Kg8 {[%emt 0:00:24]} 46. Qf4 {[%emt 0:00:28]} Qb1+ {[%emt 0:00:05]} 47. Kg2 {[%emt 0:00:07]} Kg7 {[%emt 0:00:05]} 48. Qc7+ {[%emt 0:00:09]} Kh6 {[%emt 0:00:23]} 49. Qd8 {[%emt 0:00:14]} Kg7 {[%emt 0:00:38]} 50. Qxd5 {[%emt 0:00:11]} g5 {[%emt 0:00:13]} 51. Qe6 {[%emt 0:00:24]} Qg6 {[%emt 0:00:17]} 52. d5 {[%emt 0:00:33]} g4 {[%emt 0:00:13]} 53. hxg4 {[%emt 0:00:09]} hxg4 {[%emt 0:00:01]} 54. Nh4 {[%emt 0:00:16]} Qg5 {[%emt 0:00:58]} 55. d6 {[%emt 0:00:15]} Kh7 {[%emt 0:00:34]} 56. d7 {[%emt 0:00:11]} f5 {[%emt 0:00:35]} 57. Qg6+ {[%emt 0:00:13]} 1-0